[Event "VII Open Internacional Quart de Poblet"]
[Site "Quart de Poblet, Spain"]
[Date "2019.08.06"]
[Round "2.7"]
[White "Gonzalvez Tamarit, Ivan"]
[Black "Kovacevic, Slobodan"]
[Result "0-1"]
[TimeControl "90m +30s por jugada"]
[WhiteFideId "32041721"]
[BlackFideId "902152"]
[WhiteElo "1918"]
[BlackElo "2252"]

1. d4 {[%clk 01:30:57]} {[%emt 00:00:08]} Nf6 {[%clk 01:20:53]} {[%emt
00:10:03]} 2. Nf3 {[%clk 01:31:14]} {[%emt 00:00:37]} e6 {[%clk 01:20:39]}
{[%emt 00:00:18]} 3. Bf4 {[%clk 01:31:40]} {[%emt 00:00:36]} c5 {[%clk
01:19:05]} {[%emt 00:01:33]} 4. e3 {[%clk 01:30:54]} {[%emt 00:01:15]} b6
{[%clk 01:17:53]} {[%emt 00:01:42]} 5. c3 {[%clk 01:30:40]} {[%emt 00:00:47]}
Bb7 {[%clk 01:17:49]} {[%emt 00:00:30]} 6. Bd3 {[%clk 01:30:38]} {[%emt
00:00:32]} Be7 {[%clk 01:17:54]} {[%emt 00:00:44]} 7. h3 {[%clk 01:31:04]} a6
{[%clk 01:18:03]} {[%emt 00:00:08]} 8. O-O {[%clk 01:30:09]} {[%emt 00:01:54]}
O-O {[%clk 01:13:42]} {[%emt 00:04:20]} 9. Nbd2 {[%clk 01:29:50]} {[%emt
00:01:17]} cxd4 {[%clk 01:12:20]} {[%emt 00:01:31]} 10. cxd4 {[%clk 01:30:00]}
{[%emt 00:00:13]} d6 {[%clk 01:11:38]} {[%emt 00:01:12]} 11. Qe2 {[%clk
01:29:52]} {[%emt 00:00:44]} Nd5 {[%clk 01:09:59]} {[%emt 00:02:03]} 12. Bh2
{[%clk 01:27:49]} {[%emt 00:02:37]} Nb4 {[%clk 01:08:37]} {[%emt 00:02:03]} 13.
Bb1 {[%clk 01:16:23]} {[%emt 00:11:42]} a5 {[%clk 00:59:50]} {[%emt 00:09:33]}
14. Rc1 {[%clk 01:11:32]} {[%emt 00:05:14]} g6 {[%clk 00:56:45]} {[%emt
00:03:25]} 15. a3 {[%clk 01:07:53]} {[%emt 00:04:09]} Ba6 {[%clk 00:54:08]}
{[%emt 00:03:07]} 16. Qd1 {[%clk 01:04:29]} {[%emt 00:03:56]} Nd5 {[%clk
00:51:27]} {[%emt 00:03:08]} 17. Ne4 {[%clk 00:54:41]} {[%emt 00:10:21]} Bb7
{[%clk 00:45:33]} {[%emt 00:06:28]} 18. Bd3 {[%clk 00:47:09]} {[%emt 00:08:00]}
Na6 {[%clk 00:41:53]} {[%emt 00:04:21]} 19. Qe2 {[%clk 00:46:15]} {[%emt
00:01:09]} Nac7 {[%clk 00:41:31]} {[%emt 00:00:51]} 20. Rc2 {[%clk 00:42:06]}
{[%emt 00:04:39]} Qd7 {[%clk 00:37:47]} {[%emt 00:04:14]} 21. Rac1 {[%clk
00:39:29]} {[%emt 00:03:07]} Rfc8 {[%clk 00:35:52]} {[%emt 00:02:28]} 22. Ned2
{[%clk 00:33:13]} {[%emt 00:06:42]} b5 {[%clk 00:22:36]} {[%emt 00:14:07]} 23.
e4 {[%clk 00:24:37]} {[%emt 00:08:46]} Nb6 {[%clk 00:21:25]} {[%emt 00:01:43]}
24. e5 {[%clk 00:23:09]} {[%emt 00:01:55]} d5 {[%clk 00:21:06]} {[%emt
00:00:49]} 25. Bf4 {[%clk 00:07:44]} {[%emt 00:15:59]} a4 {[%clk 00:20:48]}
{[%emt 00:00:44]} 26. Ng5 {[%clk 00:07:14]} {[%emt 00:01:00]} Bf8 {[%clk
00:13:09]} {[%emt 00:08:10]} 27. h4 {[%clk 00:01:49]} {[%emt 00:05:57]} Nc4
{[%clk 00:11:30]} {[%emt 00:02:08]} 28. h5 {[%clk 00:01:33]} {[%emt 00:00:46]}
h6 {[%clk 00:06:25]} {[%emt 00:05:35]} 29. Nh3 {[%clk 00:01:16]} {[%emt
00:00:46]} g5 {[%clk 00:06:49]} {[%emt 00:00:11]} 30. Qg4 {[%clk 00:00:56]}
{[%emt 00:00:44]} Be7 {[%clk 00:04:40]} {[%emt 00:02:40]} 31. Nxg5 {[%clk
00:00:37]} {[%emt 00:00:48]} hxg5 {[%emt 00:02:38]} 32. Bxg5 {[%clk 00:00:58]}
Bxg5 {[%clk 00:01:34]} {[%emt 00:01:37]} 33. Qxg5+ {[%clk 00:01:23]} {[%emt
00:00:09]} Kf8 {[%clk 00:02:03]} {[%emt 00:00:06]} 34. h6 {[%clk 00:00:35]}
{[%emt 00:01:09]} Qe7 {[%clk 00:02:31]} {[%emt 00:00:38]} 35. Qg7+ {[%clk
00:00:57]} Ke8 {[%clk 00:03:00]} 36. h7 {[%clk 00:00:40]} {[%emt 00:00:26]} Kd7
{[%clk 00:03:29]} {[%emt 00:00:04]} 37. Nf3 {[%clk 00:00:40]} {[%emt 00:00:20]}
Rh8 {[%clk 00:03:03]} {[%emt 00:01:01]} 38. Ng5 {[%clk 00:00:34]} {[%emt
00:00:49]} Raf8 {[%clk 00:03:15]} {[%emt 00:00:03]} 39. Re1 {[%clk 00:00:34]}
{[%emt 00:00:28]} Ne8 {[%clk 00:02:52]} {[%emt 00:01:08]} 40. Qh6 {[%clk
00:00:43]} {[%emt 00:00:05]} Bc8 {[%clk 00:02:49]} {[%emt 00:00:34]} 41. f4
{[%clk 00:00:38]} {[%emt 00:00:44]} Kd8 {[%clk 00:02:51]} {[%emt 00:00:44]} 42.
g4 {[%clk 00:00:40]} {[%emt 00:00:04]} f6 {[%clk 00:03:11]} {[%emt 00:00:38]}
43. Nf3 {[%clk 00:00:40]} {[%emt 00:00:06]} Qg7 {[%clk 00:03:13]} {[%emt
00:00:24]} 44. Qh4 {[%clk 00:00:43]} {[%emt 00:00:27]} Kc7 {[%clk 00:03:31]}
{[%emt 00:00:16]} 45. Kf2 {[%clk 00:00:42]} {[%emt 00:00:27]} fxe5 {[%clk
00:03:44]} {[%emt 00:00:37]} 46. fxe5 {[%clk 00:00:33]} {[%emt 00:00:26]} Rf4
{[%clk 00:04:07]} 47. Rg1 {[%clk 00:00:36]} {[%emt 00:00:28]} Qf7 {[%clk
00:04:06]} {[%emt 00:00:29]} 48. Rg3 {[%clk 00:00:34]} {[%emt 00:00:34]} Rxd4
{[%clk 00:04:27]} {[%emt 00:00:39]} 49. Bf5 {[%clk 00:00:37]} {[%emt 00:00:03]}
Rf4 {[%clk 00:04:18]} {[%emt 00:00:31]} 50. Qh6 {[%clk 00:00:40]} {[%emt
00:00:30]} Rxf3+ {[%clk 00:04:32]} {[%emt 00:00:12]} 51. Rxf3 {[%clk 00:00:52]}
{[%emt 00:00:19]} exf5 {[%clk 00:04:59]} {[%emt 00:00:37]} 52. Rxf5 {[%clk
00:00:36]} {[%emt 00:00:13]} Bxf5 {[%clk 00:05:04]} {[%emt 00:00:24]} 53. Qf4
{[%clk 00:00:33]} {[%emt 00:00:36]} Be6 {[%clk 00:05:10]} {[%emt 00:00:21]} 0-1

[Event "VII Open Internacional Quart de Poblet"]
[Site "Quart de Poblet, Spain"]
[Date "2019.08.06"]
[Round "2.8"]
[White "Davtyan, David Arm"]
[Black "Galvan Cipriani, Viviana"]
[Result "1-0"]
[TimeControl "90m +30s por jugada"]
[BlackFideId "32041144"]
[WhiteElo "2249"]
[BlackElo "1941"]

1. e4 {[%clk 01:28:57]} {[%emt 00:02:03]} c5 {[%clk 01:30:37]} {[%emt
00:00:34]} 2. Nc3 {[%clk 01:29:16]} {[%emt 00:00:11]} Nc6 {[%clk 01:30:46]}
{[%emt 00:00:25]} 3. Bb5 {[%clk 01:29:39]} Nd4 {[%clk 01:30:53]} {[%emt
00:00:19]} 4. Nf3 {[%clk 01:30:02]} {[%emt 00:00:06]} Nxb5 {[%clk 01:30:46]}
{[%emt 00:00:35]} 5. Nxb5 {[%clk 01:30:31]} {[%emt 00:00:10]} d5 {[%clk
01:28:43]} {[%emt 00:02:25]} 6. exd5 {[%clk 01:30:22]} {[%emt 00:00:37]} a6
{[%clk 01:29:06]} {[%emt 00:00:11]} 7. Nc3 {[%clk 01:29:34]} {[%emt 00:01:15]}
Nf6 {[%clk 01:29:34]} {[%emt 00:00:31]} 8. d4 {[%clk 01:29:49]} {[%emt
00:00:04]} c4 {[%clk 01:25:45]} {[%emt 00:04:01]} 9. Ne5 {[%clk 01:11:07]}
{[%emt 00:19:15]} b5 {[%clk 01:24:52]} {[%emt 00:01:19]} 10. Bg5 {[%clk
01:01:34]} {[%emt 00:10:03]} Nxd5 {[%clk 00:58:36]} {[%emt 00:26:52]} 11. Nxf7
{[%clk 00:59:06]} {[%emt 00:02:57]} Kxf7 {[%clk 00:58:53]} {[%emt 00:00:09]} 12.
Qf3+ {[%clk 00:59:23]} {[%emt 00:00:53]} Kg8 {[%clk 00:58:47]} 13. Qxd5+ {[%clk
00:57:50]} {[%emt 00:01:59]} Qxd5 {[%clk 00:55:39]} {[%emt 00:03:54]} 14. Nxd5
{[%clk 00:58:18]} Bb7 {[%clk 00:55:06]} {[%emt 00:00:49]} 15. Ne3 {[%clk
00:57:35]} {[%emt 00:01:13]} e6 {[%clk 00:40:15]} {[%emt 00:15:24]} 16. Bf4
{[%clk 00:56:55]} {[%emt 00:01:06]} Be7 {[%clk 00:36:55]} {[%emt 00:03:50]} 17.
O-O {[%clk 00:55:51]} {[%emt 00:01:36]} Kf7 {[%clk 00:33:49]} {[%emt 00:03:37]}
18. Be5 {[%clk 00:54:04]} {[%emt 00:02:15]} Bf6 {[%clk 00:27:55]} {[%emt
00:06:34]} 19. f4 {[%clk 00:51:51]} {[%emt 00:02:34]} Rhf8 {[%clk 00:20:28]}
{[%emt 00:07:54]} 20. Rae1 {[%clk 00:47:29]} {[%emt 00:05:00]} Kg8 {[%clk
00:17:00]} {[%emt 00:03:50]} 21. c3 {[%clk 00:45:13]} {[%emt 00:02:46]} Be7
{[%clk 00:11:07]} {[%emt 00:06:23]} 22. Ng4 {[%clk 00:42:15]} {[%emt 00:03:28]}
Rf7 {[%clk 00:06:26]} {[%emt 00:05:15]} 23. Re3 {[%clk 00:41:15]} {[%emt
00:01:29]} h5 {[%clk 00:04:47]} {[%emt 00:02:31]} 24. Nf2 {[%clk 00:41:05]}
{[%emt 00:00:15]} Kf8 {[%clk 00:01:23]} {[%emt 00:03:54]} 25. g3 {[%emt
00:02:37]} Ke8 {[%clk 00:00:44]} {[%emt 00:00:12]} 26. h4 {[%clk 00:40:08]}
{[%emt 00:00:19]} Kd7 {[%clk 00:00:40]} {[%emt 00:00:32]} 27. Ree1 {[%clk
00:39:54]} {[%emt 00:00:44]} Raf8 {[%clk 00:00:37]} {[%emt 00:00:35]} 28. Nd1
{[%clk 00:40:00]} {[%emt 00:00:25]} Bc6 {[%clk 00:00:34]} {[%emt 00:00:30]} 29.
Ne3 {[%clk 00:40:09]} {[%emt 00:00:21]} g6 {[%clk 00:00:33]} {[%emt 00:00:41]}
30. Rd1 {[%clk 00:40:08]} {[%emt 00:00:21]} Kc8 {[%clk 00:00:37]} {[%emt
00:00:26]} 31. b3 {[%clk 00:39:50]} {[%emt 00:00:48]} cxb3 {[%clk 00:00:37]}
{[%emt 00:00:37]} 32. axb3 {[%clk 00:40:19]} {[%emt 00:00:17]} Rd8 {[%clk
00:00:32]} {[%emt 00:00:28]} 33. c4 {[%clk 00:39:49]} {[%emt 00:00:59]} Bf8
{[%clk 00:00:31]} {[%emt 00:00:18]} 34. Rc1 {[%clk 00:39:17]} {[%emt 00:01:02]}
Kb7 {[%clk 00:00:54]} {[%emt 00:00:04]} 35. Rfd1 {[%clk 00:39:25]} {[%emt
00:00:22]} Rfd7 {[%clk 00:01:10]} {[%emt 00:00:35]} 36. Kh2 {[%clk 00:37:56]}
{[%emt 00:01:39]} Ba3 {[%clk 00:00:32]} {[%emt 00:01:08]} 37. Rc2 {[%clk
00:37:55]} {[%emt 00:00:31]} Be7 {[%clk 00:00:31]} {[%emt 00:00:30]} 38. d5
{[%clk 00:37:50]} {[%emt 00:00:34]} Kc8 {[%clk 00:00:31]} {[%emt 00:00:42]} 39.
cxb5 {[%clk 00:38:00]} {[%emt 00:00:17]} 1-0

[Event "VII Open Internacional Quart de Poblet"]
[Site "Quart de Poblet, Spain"]
[Date "2019.08.06"]
[Round "2.9"]
[White "Deusa Ballesteros, Luis Miguel"]
[Black "Ramirez Aucejo, Hector"]
[Result "1-0"]
[TimeControl "90m +30s por jugada"]
[WhiteFideId "54535808"]
[BlackFideId "32032064"]
[WhiteElo "1285"]
[BlackElo "1668"]

1. e4 {[%clk 01:30:52]} {[%emt 00:00:07]} c5 {[%clk 01:13:07]} {[%emt
00:17:53]} 2. Nf3 {[%clk 01:31:04]} {[%emt 00:00:17]} d6 {[%clk 01:13:31]}
{[%emt 00:00:08]} 3. d4 {[%clk 01:31:14]} {[%emt 00:00:20]} cxd4 {[%clk
01:13:58]} {[%emt 00:00:03]} 4. Nxd4 {[%clk 01:31:08]} {[%emt 00:00:35]} Nf6
{[%clk 01:14:25]} {[%emt 00:00:04]} 5. Nc3 {[%clk 01:31:01]} {[%emt 00:00:37]}
a6 {[%clk 01:14:50]} {[%emt 00:00:05]} 6. Be3 {[%clk 01:27:07]} {[%emt
00:04:23]} e5 {[%clk 01:12:48]} {[%emt 00:02:32]} 7. Nb3 {[%clk 01:25:39]}
{[%emt 00:01:58]} Be6 {[%clk 01:12:40]} {[%emt 00:00:38]} 8. Bg5 {[%clk
01:21:20]} {[%emt 00:04:49]} Be7 {[%clk 01:06:01]} {[%emt 00:07:09]} 9. Bxf6
{[%clk 01:11:05]} {[%emt 00:10:44]} Bxf6 {[%clk 01:04:53]} {[%emt 00:01:39]} 10.
Nd5 {[%clk 01:10:29]} {[%emt 00:01:06]} Be7 {[%clk 01:04:26]} {[%emt 00:00:57]}
11. Nxe7 {[%clk 01:09:26]} {[%emt 00:01:34]} Qxe7 {[%clk 01:04:55]} 12. g3
{[%clk 01:08:15]} {[%emt 00:01:41]} O-O {[%clk 01:03:33]} {[%emt 00:01:52]} 13.
Bg2 {[%clk 01:07:35]} {[%emt 00:01:10]} Nc6 {[%clk 00:58:17]} {[%emt 00:05:46]}
14. O-O {[%clk 01:05:48]} {[%emt 00:02:17]} a5 {[%clk 00:54:39]} {[%emt
00:04:09]} 15. c3 {[%clk 01:00:53]} {[%emt 00:05:24]} a4 {[%clk 00:51:53]}
{[%emt 00:03:16]} 16. Nc1 {[%clk 00:56:46]} {[%emt 00:04:37]} b5 {[%clk
00:50:32]} {[%emt 00:01:50]} 17. Nd3 {[%clk 00:55:03]} {[%emt 00:02:14]} Bc4
{[%clk 00:49:23]} {[%emt 00:01:39]} 18. Re1 {[%clk 00:54:42]} {[%emt 00:00:51]}
Qe6 {[%clk 00:41:42]} {[%emt 00:08:11]} 19. a3 {[%clk 00:51:26]} {[%emt
00:03:46]} Rac8 {[%clk 00:33:49]} {[%emt 00:08:21]} 20. Nb4 {[%clk 00:49:31]}
{[%emt 00:02:26]} Nxb4 {[%clk 00:33:51]} {[%emt 00:00:29]} 21. axb4 {[%clk
00:49:19]} {[%emt 00:00:42]} Rfd8 {[%clk 00:27:46]} {[%emt 00:06:35]} 22. Qh5
{[%emt 00:04:06]} Qg6 {[%clk 00:26:15]} {[%emt 00:01:58]} 23. Qxg6 {[%clk
00:45:45]} {[%emt 00:00:31]} hxg6 {[%clk 00:26:43]} {[%emt 00:00:02]} 24. Rad1
{[%clk 00:45:32]} {[%emt 00:00:42]} g5 {[%clk 00:26:44]} {[%emt 00:00:30]} 25.
h3 {[%clk 00:44:48]} {[%emt 00:01:14]} Kf8 {[%clk 00:23:33]} {[%emt 00:03:40]}
26. Bf1 {[%clk 00:44:20]} {[%emt 00:00:59]} Ke7 {[%clk 00:23:04]} {[%emt
00:00:59]} 27. Bxc4 {[%clk 00:43:29]} {[%emt 00:01:21]} Rxc4 {[%clk 00:23:32]}
{[%emt 00:00:02]} 28. Kg2 {[%clk 00:43:34]} {[%emt 00:00:24]} Ke6 {[%clk
00:23:41]} {[%emt 00:00:21]} 29. Kf3 {[%clk 00:43:40]} {[%emt 00:00:23]} a3
{[%clk 00:16:41]} {[%emt 00:07:30]} 30. bxa3 {[%clk 00:43:05]} {[%emt
00:01:06]} Rxc3+ {[%clk 00:12:47]} {[%emt 00:04:25]} 31. Re3 {[%clk 00:43:21]}
{[%emt 00:00:13]} Rxe3+ {[%clk 00:12:58]} {[%emt 00:00:19]} 32. fxe3 {[%clk
00:39:41]} {[%emt 00:04:10]} d5 {[%clk 00:11:22]} {[%emt 00:02:06]} 33. exd5+
{[%clk 00:39:41]} {[%emt 00:00:30]} Rxd5 {[%clk 00:11:49]} {[%emt 00:00:03]} 34.
Rc1 {[%clk 00:38:01]} {[%emt 00:02:09]} f5 {[%clk 00:09:12]} {[%emt 00:03:09]}
35. Rc6+ {[%clk 00:35:42]} {[%emt 00:02:49]} Rd6 {[%clk 00:09:28]} {[%emt
00:00:14]} 36. Rc5 {[%clk 00:33:00]} {[%emt 00:03:11]} Rd5 {[%clk 00:09:55]}
{[%emt 00:00:04]} 37. Rc6+ {[%clk 00:33:14]} {[%emt 00:00:16]} Rd6 {[%clk
00:10:24]} {[%emt 00:00:02]} 38. Rc5 {[%clk 00:33:23]} {[%emt 00:00:20]} e4+
{[%clk 00:10:45]} {[%emt 00:00:09]} 39. Ke2 {[%clk 00:33:34]} {[%emt 00:00:18]}
Rb6 {[%clk 00:10:22]} {[%emt 00:00:53]} 40. Kd2 {[%clk 00:32:19]} {[%emt
00:01:44]} g6 {[%clk 00:10:17]} {[%emt 00:00:35]} 41. Ke2 {[%clk 00:30:06]}
{[%emt 00:02:44]} Kd6 {[%clk 00:08:12]} {[%emt 00:02:35]} 42. Kd2 {[%clk
00:29:15]} {[%emt 00:01:21]} Rb7 {[%clk 00:06:54]} {[%emt 00:01:48]} 43. Ke2
{[%clk 00:29:09]} {[%emt 00:00:35]} Rb6 {[%clk 00:04:43]} {[%emt 00:02:42]} 44.
Kd2 {[%clk 00:29:29]} {[%emt 00:00:10]} Ke6 {[%clk 00:04:41]} {[%emt 00:00:33]}
45. Ke2 {[%clk 00:29:44]} {[%emt 00:00:15]} Kd7 {[%clk 00:04:23]} {[%emt
00:00:45]} 46. Ke1 {[%clk 00:29:21]} {[%emt 00:00:56]} Ke7 {[%clk 00:04:35]}
{[%emt 00:00:17]} 47. Ke2 {[%clk 00:29:25]} {[%emt 00:00:27]} Ke6 {[%clk
00:04:58]} {[%emt 00:00:07]} 48. Ke1 {[%clk 00:29:39]} {[%emt 00:00:16]} Ra6
{[%clk 00:04:46]} {[%emt 00:00:41]} 49. Rxb5 {[%clk 00:29:29]} {[%emt
00:00:41]} Rxa3 {[%clk 00:05:13]} {[%emt 00:00:04]} 50. Kf2 {[%clk 00:28:59]}
{[%emt 00:00:59]} Ra6 {[%clk 00:04:35]} {[%emt 00:01:08]} 51. Rb8 {[%clk
00:21:57]} {[%emt 00:07:32]} Kd5 {[%clk 00:03:56]} {[%emt 00:01:09]} 52. Rd8+
{[%clk 00:19:10]} {[%emt 00:03:17]} Kc6 {[%clk 00:02:33]} {[%emt 00:01:50]} 53.
Ke1 {[%clk 00:16:02]} {[%emt 00:03:40]} Kb5 {[%clk 00:02:30]} {[%emt 00:00:34]}
54. Rd4 {[%clk 00:16:02]} {[%emt 00:00:28]} Ra4 {[%clk 00:00:50]} {[%emt
00:02:12]} 55. Rd6 {[%clk 00:16:17]} {[%emt 00:00:15]} Ra6 {[%clk 00:00:43]}
{[%emt 00:00:37]} 56. Rd4 {[%clk 00:16:34]} {[%emt 00:00:13]} Ra4 {[%clk
00:00:35]} {[%emt 00:00:39]} 57. Rd6 {[%clk 00:16:53]} {[%emt 00:00:11]} Ra6
{[%clk 00:00:59]} {[%emt 00:00:06]} 58. Rd4 {[%clk 00:17:09]} {[%emt 00:00:14]}
Rc6 {[%clk 00:00:39]} {[%emt 00:00:51]} 59. Kd2 {[%clk 00:16:49]} {[%emt
00:00:50]} Ra6 {[%clk 00:00:42]} {[%emt 00:00:26]} 60. Kc3 {[%clk 00:14:56]}
{[%emt 00:02:22]} Ra3+ {[%clk 00:01:04]} {[%emt 00:00:10]} 61. Kd2 {[%clk
00:15:07]} {[%emt 00:00:18]} Ra2+ {[%clk 00:01:28]} {[%emt 00:00:06]} 62. Kc3
{[%clk 00:15:24]} {[%emt 00:00:11]} Rg2 {[%clk 00:01:38]} {[%emt 00:00:21]} 63.
Rd5+ {[%clk 00:15:20]} {[%emt 00:00:35]} Kc6 {[%clk 00:01:54]} {[%emt
00:00:14]} 64. Rc5+ {[%clk 00:15:36]} {[%emt 00:00:15]} Kd6 {[%clk 00:01:34]}
{[%emt 00:00:48]} 65. Ra5 {[%clk 00:15:15]} {[%emt 00:00:53]} Rxg3 {[%clk
00:01:12]} {[%emt 00:00:52]} 66. Ra6+ {[%clk 00:15:29]} {[%emt 00:00:16]} Kc7
{[%clk 00:01:09]} {[%emt 00:00:33]} 67. Kd4 {[%clk 00:15:33]} {[%emt 00:00:27]}
Rxh3 {[%clk 00:01:16]} {[%emt 00:00:23]} 68. Rxg6 {[%clk 00:15:51]} {[%emt
00:00:12]} Rg3 {[%clk 00:01:27]} {[%emt 00:00:18]} 69. b5 {[%clk 00:14:53]}
{[%emt 00:01:30]} g4 {[%clk 00:00:32]} {[%emt 00:01:25]} 70. b6+ {[%clk
00:14:41]} {[%emt 00:00:43]} Kb7 {[%clk 00:00:59]} {[%emt 00:00:03]} 71. Kc5
{[%clk 00:13:11]} {[%emt 00:01:59]} Rxe3 {[%clk 00:00:55]} {[%emt 00:00:35]} 72.
Rg7+ {[%clk 00:13:36]} {[%emt 00:00:05]} Kb8 {[%clk 00:00:34]} {[%emt
00:00:51]} 73. Rg8+ {[%clk 00:13:47]} {[%emt 00:00:19]} Kb7 {[%clk 00:00:50]}
{[%emt 00:00:14]} 74. Rg7+ {[%clk 00:14:10]} {[%emt 00:00:07]} Kb8 {[%clk
00:01:04]} {[%emt 00:00:15]} 75. Rg8+ {[%clk 00:14:24]} {[%emt 00:00:16]} Kb7
{[%clk 00:01:33]} {[%emt 00:00:02]} 76. Rg7+ {[%clk 00:14:36]} {[%emt
00:00:18]} Kc8 {[%clk 00:01:51]} {[%emt 00:00:12]} 77. Rg8+ {[%clk 00:14:47]}
{[%emt 00:00:19]} Kd7 {[%clk 00:00:33]} {[%emt 00:01:48]} 78. Rg7+ {[%clk
00:13:56]} {[%emt 00:01:22]} {Bandera} 1-0

[Event "VII Open Internacional Quart de Poblet"]
[Site "Quart de Poblet, Spain"]
[Date "2019.08.06"]
[Round "3.1"]
[White "Cruz Lledo, Pablo"]
[Black "Davtyan, David Arm"]
[Result "1-0"]
[TimeControl "90m +30s por jugada"]
[WhiteFideId "2297361"]
[WhiteElo "2445"]
[BlackElo "2249"]

1. d4 {[%clk 01:30:51]} {[%emt 00:00:11]} Nf6 {[%clk 01:30:25]} {[%emt
00:00:35]} 2. Nf3 {[%clk 01:31:11]} {[%emt 00:00:09]} e6 {[%clk 01:30:41]}
{[%emt 00:00:19]} 3. e3 {[%clk 01:30:23]} {[%emt 00:01:14]} b6 {[%clk
01:30:35]} {[%emt 00:00:36]} 4. Bd3 {[%clk 01:30:13]} {[%emt 00:00:39]} Bb7
{[%clk 01:30:58]} {[%emt 00:00:06]} 5. O-O {[%clk 01:30:37]} {[%emt 00:00:07]}
g6 {[%clk 01:30:04]} {[%emt 00:01:23]} 6. c4 {[%clk 01:30:54]} {[%emt
00:00:15]} Bg7 {[%clk 01:30:25]} {[%emt 00:00:09]} 7. Nc3 {[%clk 01:31:08]}
{[%emt 00:00:14]} d5 {[%clk 01:30:27]} {[%emt 00:00:29]} 8. b3 {[%clk
01:28:28]} {[%emt 00:03:10]} O-O {[%clk 01:28:51]} {[%emt 00:02:10]} 9. Ba3
{[%clk 01:28:48]} {[%emt 00:00:07]} Re8 {[%clk 01:29:08]} {[%emt 00:00:13]} 10.
Rc1 {[%clk 01:29:00]} {[%emt 00:00:22]} a6 {[%clk 01:27:23]} {[%emt 00:02:10]}
11. Ne5 {[%clk 01:25:56]} {[%emt 00:03:36]} Nbd7 {[%clk 01:25:17]} {[%emt
00:02:39]} 12. Nxd7 {[%clk 01:19:40]} {[%emt 00:06:42]} Qxd7 {[%clk 01:22:22]}
{[%emt 00:03:25]} 13. c5 {[%clk 01:13:00]} {[%emt 00:07:10]} e5 {[%clk
01:17:34]} {[%emt 00:05:18]} 14. cxb6 {[%clk 01:12:20]} {[%emt 00:01:10]} cxb6
{[%clk 01:08:02]} {[%emt 00:10:05]} 15. Na4 {[%clk 01:12:42]} {[%emt 00:00:06]}
Qd8 {[%clk 01:02:46]} {[%emt 00:05:44]} 16. dxe5 {[%clk 01:11:23]} {[%emt
00:01:54]} Rxe5 {[%clk 01:02:47]} {[%emt 00:00:24]} 17. Bb2 {[%clk 01:11:40]}
{[%emt 00:00:18]} d4 {[%clk 00:57:18]} {[%emt 00:05:54]} 18. Bxd4 {[%clk
01:09:57]} {[%emt 00:02:13]} Qd5 {[%clk 00:57:15]} {[%emt 00:00:36]} 19. f3
{[%clk 01:10:07]} {[%emt 00:00:16]} Rh5 {[%clk 00:56:43]} {[%emt 00:01:07]} 20.
Qe2 {[%clk 00:45:47]} {[%emt 00:24:46]} Re8 {[%clk 00:53:04]} {[%emt 00:04:13]}
21. Qf2 {[%clk 00:33:08]} {[%emt 00:13:19]} Qd6 {[%clk 00:42:40]} {[%emt
00:10:40]} 22. Qg3 {[%clk 00:32:58]} {[%emt 00:00:39]} Qb4 {[%clk 00:38:25]}
{[%emt 00:04:45]} 23. Nxb6 {[%clk 00:25:10]} {[%emt 00:08:17]} Rd8 {[%clk
00:34:00]} {[%emt 00:04:56]} 24. Rc4 {[%clk 00:21:45]} {[%emt 00:03:55]} Qd2
{[%clk 00:33:21]} {[%emt 00:01:09]} 25. Qc7 {[%clk 00:21:30]} {[%emt 00:00:45]}
Rxd4 {[%clk 00:33:09]} {[%emt 00:00:46]} 26. exd4 {[%clk 00:20:18]} {[%emt
00:01:40]} Qe3+ {[%clk 00:31:47]} {[%emt 00:01:49]} 27. Rf2 {[%clk 00:20:15]}
{[%emt 00:00:36]} Bxf3 {[%clk 00:30:17]} {[%emt 00:01:58]} 28. Qd8+ {[%clk
00:16:23]} {[%emt 00:04:21]} Ne8 {[%clk 00:30:40]} {[%emt 00:00:12]} 29. Bf1
{[%clk 00:08:24]} {[%emt 00:08:24]} Bb7 {[%clk 00:28:40]} {[%emt 00:02:29]} 30.
Rc3 {[%clk 00:07:14]} {[%emt 00:01:40]} Qe4 {[%clk 00:26:52]} {[%emt 00:02:18]}
31. Rd3 {[%clk 00:04:37]} {[%emt 00:03:07]} Bd5 {[%clk 00:17:44]} {[%emt
00:09:38]} 32. Qd7 {[%clk 00:03:10]} {[%emt 00:01:58]} Bf6 {[%clk 00:15:01]}
{[%emt 00:03:12]} 33. Nxd5 {[%clk 00:01:14]} {[%emt 00:02:26]} Rxd5 {[%clk
00:15:27]} {[%emt 00:00:05]} 34. Qb7 {[%clk 00:00:52]} {[%emt 00:00:51]} Nd6
{[%clk 00:13:48]} {[%emt 00:02:28]} 35. Qxa6 {[%clk 00:00:43]} {[%emt
00:00:24]} Bxd4 {[%clk 00:13:38]} {[%emt 00:00:37]} 36. Kh1 {[%clk 00:00:49]}
{[%emt 00:00:24]} Kg7 {[%clk 00:11:16]} {[%emt 00:02:52]} 37. Re2 {[%clk
00:00:45]} {[%emt 00:00:37]} Rf5 {[%clk 00:10:43]} {[%emt 00:01:02]} 38. Rf3
{[%clk 00:01:01]} {[%emt 00:00:12]} Qb1 {[%clk 00:09:37]} {[%emt 00:01:35]} 39.
Rd2 {[%clk 00:00:46]} {[%emt 00:00:44]} Be5 {[%clk 00:06:56]} {[%emt 00:03:12]}
40. Qe2 {[%clk 00:00:33]} {[%emt 00:00:44]} Rxf3 {[%clk 00:03:30]} {[%emt
00:03:55]} 41. gxf3 {[%clk 00:01:02]} Bf4 {[%clk 00:03:21]} {[%emt 00:00:40]}
42. Rd4 {[%clk 00:01:00]} {[%emt 00:00:34]} Qf5 {[%clk 00:03:27]} {[%emt
00:00:22]} 43. a4 {[%clk 00:00:41]} {[%emt 00:00:49]} Qf6 {[%clk 00:03:25]}
{[%emt 00:00:35]} 44. Rd3 {[%clk 00:00:38]} {[%emt 00:00:31]} Nf5 {[%clk
00:03:33]} {[%emt 00:00:21]} 45. Bh3 {[%clk 00:00:39]} {[%emt 00:00:29]} Nh4
{[%clk 00:02:53]} {[%emt 00:01:10]} 46. Rd1 {[%clk 00:00:39]} {[%emt 00:00:30]}
Qb6 {[%clk 00:02:37]} {[%emt 00:00:46]} 47. Qc4 {[%clk 00:00:36]} {[%emt
00:00:36]} Qf6 {[%clk 00:02:12]} {[%emt 00:00:55]} 48. Qe2 {[%clk 00:00:33]}
{[%emt 00:00:33]} Qb6 {[%clk 00:02:29]} {[%emt 00:00:10]} 49. Qb2+ {[%clk
00:00:49]} {[%emt 00:00:14]} Kg8 {[%clk 00:02:29]} {[%emt 00:00:30]} 50. b4
{[%clk 00:00:39]} {[%emt 00:00:45]} Nxf3 {[%clk 00:02:42]} {[%emt 00:00:13]} 51.
Bg2 {[%clk 00:00:36]} {[%emt 00:00:35]} Ne5 {[%clk 00:02:58]} {[%emt 00:00:11]}
52. Qd4 {[%clk 00:00:53]} {[%emt 00:00:13]} Qf6 {[%clk 00:01:37]} {[%emt
00:01:52]} 53. Qd8+ {[%clk 00:01:17]} {[%emt 00:00:06]} 1-0